fUSD/lending_fUSD_20260301
["ID","MTS","AMOUNT","RATE_DAILY","PERIOD"]
[406952399,1772344231843,-200.0,0.000126,4]
[406952400,1772344231853,-500.0,0.000127,4]
[406952401,1772344231862,-42726.73559845,0.000127,2]
[406952402,1772344231873,-7863.72172427,0.0001279,2]
[406952403,1772344231886,-726.36784468,0.0001279,2]
[406952404,1772344231899,-151.0,0.00012792,2]
[406952405,1772344231911,-151.0,0.00012792,2]
[406952406,1772344231922,-151.0,0.00012792,2]
[406952407,1772344231934,-151.0,0.00012792,2]
[406952408,1772344231943,-151.0,0.00012792,2]
[406952409,1772344231952,-151.0,0.00012792,2]
[406952410,1772344231962,-151.0,0.00012792,2]
[406952411,1772344231971,-151.0,0.00012792,2]
[406952412,1772344231980,-151.0,0.00012792,2]
[406952413,1772344231989,-151.0,0.00012792,2]
[406952414,1772344231998,-151.0,0.00012792,2]
[406952415,1772344232007,-500.0,0.00012792,2]
[406952416,1772344232016,-151.0,0.00012796,2]
[406952417,1772344232025,-1584.044,0.00012799,2]
[406952418,1772344232035,-153.909,0.00012799,2]
[406952419,1772344232044,-51718.82945079,0.00012799,2]
[406952420,1772344232053,-157.68385891,0.000128,2]
[406952421,1772344232063,-800.0,0.000128,4]
[406952422,1772344232073,-1134.08046067,0.000128,2]
[406952425,1772344240011,-495.28295223,0.000128,2]
[406952438,1772344242635,-388.5696,0.000128,2]
[406952439,1772344242675,-28.52161751,0.000128,2]
[406952443,1772344245505,-453.54536959,0.000128,2]
[406952444,1772344245516,-192.2306056,0.000128,2]
[406952445,1772344245525,-237.67783858,0.000128,2]
[406952446,1772344245535,-933.93120998,0.000128,2]
[406952447,1772344245546,-2427.97211052,0.000128,2]
[406952448,1772344245556,-611.51756573,0.00012812,2]
[406952449,1772344245567,-988.48243427,0.00012812,2]
[406952450,1772344245579,-79.05711573,0.00012873,2]
[406952451,1772344245742,-213.45209235,0.00012873,2]
[406952452,1772344245751,-5060.1842927,0.0001288,2]
[406952453,1772344245760,-1305.0911423,0.0001288,2]
[406952454,1772344245770,-219.4686,0.0001288,2]
[406952455,1772344245779,-1757.9132967,0.0001288,2]
[406952456,1772344245788,-563.72325349,0.0001289,2]
[406952457,1772344245798,-151.0,0.00012897,2]
[406952458,1772344245807,-218.4049622,0.00012899,2]
[406952459,1772344245816,-214.70956243,0.00012899,2]
[406952460,1772344245825,-500.0,0.00012899,2]
[406952461,1772344245835,-201.25855571,0.00012899,2]
[406952462,1772344245846,-298.74144429,0.00012899,2]
[406952463,1772344245855,-2.55955571,0.00012899,2]
[406952464,1772344245867,-264.7050025,0.00012899,2]
[406952465,1772344245881,-232.73544179,0.00012899,2]
[406952466,1772344245891,-500.0,0.00012899,2]
[406952467,1772344245900,-500.0,0.00012899,2]
[406952469,1772344245909,-500.0,0.00012899,2]
[406952471,1772344245919,-500.0,0.00012899,2]
[406952473,1772344245927,-500.0,0.00012899,2]
[406952475,1772344245936,-134.84360977,0.00012899,2]
[406952477,1772344245951,-365.15639023,0.00012899,2]
[406952479,1772344245960,-500.0,0.00012899,2]
[406952481,1772344245970,-500.0,0.00012899,2]
[406952483,1772344245979,-500.0,0.00012899,2]
[406952485,1772344245988,-500.0,0.00012899,2]
[406952487,1772344245997,-500.0,0.00012899,2]
[406952489,1772344246006,-500.0,0.00012899,2]
[406952491,1772344246016,-500.0,0.00012899,2]
[406952493,1772344246025,-500.0,0.00012899,2]
[406952495,1772344246034,-500.0,0.00012899,2]
[406952497,1772344246044,-236.77562988,0.00012899,2]
[406952499,1772344246053,-500.0,0.00012899,2]
[406952501,1772344246063,-500.0,0.00012899,2]
[406952503,1772344246073,-500.0,0.00012899,2]
[406952505,1772344246082,-500.0,0.00012899,2]
[406952507,1772344246091,-500.0,0.00012899,2]
[406952509,1772344246100,-500.0,0.00012899,2]
[406952511,1772344246110,-111.3982318,0.00012899,2]
[406952529,1772344338542,-500.0,0.00012314,2]
[406952530,1772344338566,-443.53185535,0.00012604,2]
[406952531,1772344338589,-500.0,0.00012653,2]
[406952532,1772344338614,-1672.46814465,0.000127,2]
[406952533,1772344590612,161.81,0.00012,30]
[406952568,1772345426018,262.22,5.84e-05,2]
[406952569,1772345426214,262.22,6.091e-05,2]
[406952570,1772345426426,262.22,6.343e-05,2]
[406952571,1772345426640,262.22,6.594e-05,2]
[406952572,1772345426839,262.22,6.846e-05,2]
[406952588,1772345431461,-262.22,7.097e-05,2]
[406952591,1772345431471,-262.22,7.349e-05,2]
[406952593,1772345431480,-200.19695606,7.6e-05,2]
[406952595,1772345431492,-62.02304394,7.6e-05,2]
[406952597,1772345431501,-262.22,7.852e-05,2]
[406952599,1772345431510,-262.22,8.103e-05,2]
[406952601,1772345431519,-219.38495606,8.355e-05,2]
[406952603,1772345431530,-42.83504394,8.355e-05,2]
[406952604,1772345431539,-262.22,8.606e-05,2]
[406952605,1772345431549,-262.22,8.858e-05,2]
[406952606,1772345431563,-300.0,9.002e-05,2]
[406952607,1772345431573,-907.73582545,9.002e-05,2]
[406952608,1772345431590,-292.26417455,9.002e-05,2]
[406952609,1772345431602,-203.98427365,9.003e-05,2]
[406952610,1772345431613,-296.01572635,9.003e-05,2]
[406952611,1772345431623,-500.0,9.003e-05,2]
[406952612,1772345431634,-501.30438786,9.003e-05,2]
[406952613,1772345431643,-31.87393653,9.003e-05,2]
[406952615,1772345431654,-468.12606347,9.003e-05,2]
[406952617,1772345431664,-500.0,9.003e-05,2]
[406952618,1772345431673,-500.0,9.003e-05,2]
[406952619,1772345431682,-500.0,9.003e-05,2]
[406952620,1772345431692,-262.22,9.109e-05,2]
[406952621,1772345431702,-195.0,9.252e-05,2]
[406952622,1772345431712,-262.22,9.36e-05,2]
[406952623,1772345431722,-262.22,9.612e-05,2]
[406952624,1772345431732,-195.0,9.673e-05,2]
[406952625,1772345431741,-262.22,9.863e-05,2]
[406952626,1772345431751,-150.0,9.902e-05,2]
[406952627,1772345431760,-1680.0,9.902e-05,2]
[406952629,1772345431770,-420.0,9.902e-05,2]
[406952631,1772345431779,-195.0,9.903e-05,2]
[406952633,1772345431788,-250.0,9.903e-05,2]
[406952635,1772345431798,-250.0,9.903e-05,2]
[406952637,1772345431807,-195.0,9.903e-05,2]
[406952639,1772345431816,-154.51527345,9.903e-05,2]
[406952641,1772345431826,-1938.95472284,0.0001,2]
[406952643,1772345431837,-778.71953615,0.0001,2]
[406952645,1772345431846,-22883.95506447,0.0001,2]
[406952647,1772345431856,-260.84148062,0.000101,2]
[406952649,1772345431866,-262.22,0.00010115,2]
[406952650,1772345431875,-262.22,0.00010366,2]
[406952651,1772345431885,-1037.86,0.0001059,2]
[406952652,1772345431894,-262.22,0.00010618,2]
[406952653,1772345431905,-269.35887299,0.000107,2]
[406952654,1772345431914,-1850.27,0.00010705,2]
[406952655,1772345431924,-172.92107206,0.00010773,2]
[406952656,1772345431933,-2351.0,0.00010892,2]
[406952657,1772345431943,-587.0,0.00010892,2]
[406952658,1772345431952,-255.0,0.00010893,2]
[406952659,1772345431961,-166.66,0.00010959,2]
[406952660,1772345431971,-1001.23217592,0.00010999,2]
[406952661,1772345431981,-9461.87379495,0.00011,2]
[406952662,1772345431990,-166.66,0.00011068,2]
[406952663,1772345431999,-166.66,0.00011178,2]
[406952664,1772345432009,-150.0,0.00011261,2]
[406952665,1772345432018,-166.66,0.00011288,2]
[406952666,1772345432028,-166.66,0.00011397,2]
[406952667,1772345432037,-1799.88,0.00011507,2]
[406952668,1772345432047,-166.66,0.00011507,2]
[406952669,1772345432056,-266.52,0.00011633,2]
[406952670,1772345432067,-1852.42,0.0001176,2]
[406952671,1772345432077,-336.286199,0.0001197,2]
[406952672,1772345432088,-433.0,0.00011982,2]
[406952673,1772345432098,-3292.0,0.00011982,2]
[406952674,1772345432108,-823.0,0.00011982,2]
[406952675,1772345432118,-2704.23,0.00012,3]
[406952676,1772345432127,-242.0261914,0.00012034,2]
[406952677,1772345432136,-500.0,0.0001207,2]
[406952678,1772345432146,-1500.0,0.0001207,2]
[406952679,1772345432156,-500.0,0.0001207,2]
[406952680,1772345432165,-500.0,0.0001207,2]
[406952681,1772345432175,-500.0,0.0001207,2]
[406952682,1772345432184,-500.0,0.0001207,2]
[406952683,1772345432194,-501.95803175,0.0001207,2]
[406952684,1772345432204,-500.0,0.0001207,2]
[406952685,1772345432214,-527.38378833,0.0001207,2]
[406952686,1772345432223,-500.0,0.0001207,2]
[406952687,1772345432233,-500.0,0.0001207,2]
[406952688,1772345432242,-500.0,0.0001207,2]
[406952689,1772345432252,-500.0,0.0001207,2]
[406952690,1772345432261,-500.0,0.0001207,2]
[406952691,1772345432271,-500.0,0.0001207,2]
[406952692,1772345432280,-173.85261978,0.0001207,2]
[406952693,1772345432289,-500.0,0.0001207,2]
[406952694,1772345432299,-500.0,0.0001207,2]
[406952695,1772345432308,-500.0,0.0001207,2]
[406952696,1772345432317,-500.0,0.0001207,2]
[406952697,1772345432327,-500.0,0.0001207,2]
[406952698,1772345432340,-500.0,0.0001207,2]
[406952699,1772345432349,-500.0,0.0001207,2]
[406952700,1772345432358,-514.39808394,0.0001207,2]
[406952701,1772345432368,-505.07355535,0.0001207,2]
[406952702,1772345432377,-501.25482489,0.0001207,2]
[406952703,1772345432387,-526.86160769,0.0001207,2]
[406952704,1772345432396,-500.0,0.0001207,2]
[406952705,1772345432405,-500.0,0.0001207,2]
[406952706,1772345432415,-503.23742348,0.0001207,2]
[406952707,1772345432424,-1418.39732582,0.00012087,2]
[406952708,1772345432437,-28581.59267418,0.00012087,2]
[406952709,1772345432447,-9999.99,0.00012087,2]
[406952710,1772345432458,-342.326351,0.00012159,2]
[406952711,1772345432468,-6823.06474186,0.000123,2]
[406952712,1772345432479,-502.91799038,0.00012344,2]
[406952713,1772345432488,-2393.48434117,0.000124,2]
[406952714,1772345432501,-1254.41808677,0.000124,2]
[406952715,1772345432512,-775.90810714,0.000124,2]
[406952751,1772345442809,-1925.3815672,0.000124,2]
[406952758,1772345445529,-1700.0,0.000124,2]
[406952759,1772345714171,-300.0,9.002e-05,2]
[406952760,1772345714194,-1200.0,9.002e-05,2]
[406952761,1772345714215,-300.0,9.002e-05,2]
[406952762,1772345714237,-150.0,9.002e-05,2]
[406952763,1772345714263,-500.0,9.003e-05,2]
[406952764,1772345714473,-500.0,9.003e-05,2]
[406952765,1772345714496,-500.0,9.003e-05,2]
[406952766,1772345714518,-500.0,9.003e-05,2]
[406952767,1772345714540,-500.0,9.003e-05,2]
[406952768,1772345714561,-500.0,9.003e-05,2]
[406952769,1772345714584,-50.0,9.003e-05,2]
[406952797,1772346631639,-1588.0388268,8.843e-05,2]
[406952798,1772346631651,-357.72647288,8.843e-05,2]
[406952799,1772346631785,-354.22558232,8.843e-05,2]
[406952800,1772346631794,-250.0,8.866e-05,2]
[406952801,1772346631803,-115.82441768,8.888e-05,2]
[406952802,1772346631815,-79.17558232,8.888e-05,2]
[406952803,1772346631825,-272.19602647,8.937e-05,2]
[406952804,1772346631834,-1200.0,9.001e-05,2]
[406952805,1772346631844,-300.0,9.002e-05,2]
[406952806,1772346631855,-150.0,9.002e-05,2]
[406952808,1772346631864,-300.0,9.002e-05,2]
[406952810,1772346631873,-450.0,9.003e-05,2]
[406952812,1772346631883,-500.0,9.003e-05,2]
[406952814,1772346631892,-500.0,9.003e-05,2]
[406952816,1772346631901,-500.0,9.003e-05,2]
[406952818,1772346631913,-727.93200895,9.003e-05,2]
[406952820,1772346631924,-500.0,9.003e-05,2]
[406952822,1772346631933,-500.0,9.003e-05,2]
[406952824,1772346631942,-500.0,9.003e-05,2]
[406952826,1772346631953,-500.0,9.003e-05,2]
[406952828,1772346631963,-500.0,9.003e-05,2]
[406952830,1772346631972,-500.0,9.003e-05,2]
[406952832,1772346631982,-500.0,9.003e-05,2]
[406952834,1772346631992,-500.0,9.003e-05,2]
[406952836,1772346632001,-500.0,9.003e-05,2]
[406952838,1772346632012,-500.0,9.003e-05,2]
[406952840,1772346632021,-500.0,9.003e-05,2]
[406952842,1772346632031,-500.0,9.003e-05,2]
[406952844,1772346632041,-500.0,9.003e-05,2]
[406952846,1772346632050,-500.0,9.003e-05,2]
[406952848,1772346632060,-500.0,9.003e-05,2]
[406952849,1772346632069,-500.0,9.003e-05,2]
[406952851,1772346632079,-500.0,9.003e-05,2]
[406952852,1772346632088,-500.0,9.003e-05,2]
[406952854,1772346632097,-220.0,9.014e-05,2]
[406952855,1772346632108,-258.679798,9.288e-05,2]
[406952856,1772346632117,-1639.0,9.52e-05,2]
[406952857,1772346632127,-238.0,9.53e-05,2]
[406952858,1772346632276,-252.75285491,9.538e-05,2]
[406952859,1772346632287,-1948.0,9.539e-05,2]
[406952860,1772346632296,-1009.0,9.558e-05,2]
[406952861,1772346632305,-726.0,9.685e-05,2]
[406952862,1772346632315,-300.0,9.728e-05,2]
[406952863,1772346632324,-250.0,9.728e-05,2]
[406952864,1772346632334,-264.89999337,9.728e-05,2]
[406952865,1772346632343,-3345.54201185,9.728e-05,2]
[406952866,1772346632352,-195.0,9.752e-05,2]
[406952867,1772346632362,-250.0,9.752e-05,2]
[406952868,1772346632372,-1829.88885946,9.752e-05,2]
[406952869,1772346632382,-336.07715041,9.752e-05,2]
[406952870,1772346632391,-195.0,9.752e-05,2]
[406952871,1772346632400,-195.0,9.752e-05,2]
[406952872,1772346632410,-189.0,9.831e-05,2]
[406952873,1772346632419,-1668.1,9.836e-05,2]
[406952874,1772346632429,-200.0,9.84e-05,2]
[406952875,1772346632439,-500.0,9.84e-05,2]
[406952876,1772346632448,-522.0,9.85e-05,2]
[406952877,1772346632457,-1297.0,9.865e-05,2]
[406952878,1772346632467,-1665.0,9.884e-05,2]
[406952879,1772346632476,-151.0,9.899e-05,2]
[406952880,1772346632485,-1680.0,9.901e-05,2]
[406952881,1772346632495,-420.0,9.902e-05,2]
[406952882,1772346632506,-255.0,9.902e-05,2]
[406952883,1772346632515,-324.0,9.902e-05,2]
[406952884,1772346632525,-1069.0,9.904e-05,2]
[406952885,1772346632535,-835.0,0.0001,2]
[406952886,1772346632544,-455.40140521,0.0001,2]
[406952887,1772346632554,-500.0,0.00010114,2]
[406952888,1772346632563,-1000.0,0.00010221,2]
[406952889,1772346632572,-500.0,0.00010381,2]
[406952890,1772346632581,-500.0,0.00010388,2]
[406952891,1772346632590,-151.0,0.00010397,2]
[406952892,1772346632599,-500.0,0.00010397,2]
[406952893,1772346632609,-151.0,0.00010397,2]
[406952894,1772346632618,-151.0,0.00010397,2]
[406952895,1772346632628,-500.0,0.00010397,2]
[406952896,1772346632638,-151.0,0.00010397,2]
[406952897,1772346632647,-151.0,0.00010397,2]
[406952898,1772346632656,-500.0,0.00010397,2]
[406952899,1772346632666,-151.0,0.00010397,2]
[406952900,1772346632675,-151.0,0.00010397,2]
[406952901,1772346632684,-500.0,0.00010397,2]
[406952902,1772346632694,-151.0,0.00010397,2]
[406952903,1772346632703,-151.0,0.00010397,2]
[406952904,1772346632712,-500.0,0.00010397,2]
[406952905,1772346632721,-151.0,0.00010397,2]
[406952906,1772346632731,-151.0,0.00010397,2]
[406952907,1772346632740,-500.0,0.00010397,2]
[406952908,1772346632749,-151.0,0.00010397,2]
[406952909,1772346632758,-151.0,0.00010397,2]
[406952910,1772346632767,-500.0,0.00010397,2]
[406952911,1772346632776,-151.0,0.00010397,2]
[406952912,1772346632785,-151.0,0.00010397,2]
[406952913,1772346632795,-500.0,0.00010397,2]
[406952914,1772346632804,-151.0,0.00010397,2]
[406952915,1772346632814,-151.0,0.00010397,2]
[406952916,1772346632823,-500.0,0.00010397,2]
[406952917,1772346632833,-151.0,0.00010397,2]
[406952918,1772346632843,-193.33688882,0.00010397,2]
[406952919,1772346632852,-500.0,0.00010397,2]
[406952920,1772346632862,-500.0,0.00010397,2]
[406952921,1772346632871,-151.0,0.00010397,2]
[406952922,1772346632881,-500.0,0.00010397,2]
[406952923,1772346632890,-151.0,0.00010397,2]
[406952924,1772346632899,-500.0,0.00010397,2]
[406952925,1772346632912,-151.0,0.00010397,2]
[406952926,1772346632922,-500.0,0.00010397,2]
[406952927,1772346632931,-151.0,0.00010397,2]
[406952928,1772346632941,-151.0,0.00010397,2]
[406952929,1772346632951,-151.0,0.00010397,2]
[406952930,1772346632960,-151.0,0.00010397,2]
[406952931,1772346632970,-151.0,0.00010397,2]
[406952932,1772346632979,-151.0,0.00010397,2]
[406952933,1772346632989,-151.0,0.00010397,2]
[406952934,1772346632999,-151.0,0.00010397,2]
[406952935,1772346633008,-410.17071519,0.00010402,2]
[406952936,1772346633019,-13473.97,0.00010403,2]
[406952937,1772346633028,-265.22114687,0.00010465,2]
[406952938,1772346633037,-151.0,0.00010511,2]
[406952939,1772346633047,-14501.67,0.00010514,2]
[406952940,1772346633056,-389.18,0.00010622,2]
[406952941,1772346633066,-500.0,0.00010662,2]
[406952942,1772346633077,-500.0,0.00010822,2]
[406952943,1772346633088,-2351.0,0.00010891,2]
[406952944,1772346633098,-307.0,0.00010892,2]
[406952945,1772346633107,-433.0,0.00010892,2]
[406952946,1772346633116,-500.0,0.00010936,2]
[406952947,1772346633126,-5791.84,0.00010959,2]
[406952948,1772346633136,-500.0,0.00011041,2]
[406952949,1772346633145,-230.0,0.00011145,2]
[406952950,1772346633155,-323.349747,0.00011146,2]
[406952951,1772346633164,-500.0,0.0001121,2]
[406952952,1772346633174,-6123.93,0.00011356,2]
[406952953,1772346633183,-500.0,0.00011484,2]
[406952954,1772346633192,-1000.0,0.00011499,2]
[406952955,1772346633201,-151.0,0.00011597,2]
[406952956,1772346633211,-1900.0,0.000116,4]
[406952957,1772346633221,-200.0,0.000116,4]
[406952958,1772346633230,-1000.0,0.00011607,2]
[406952959,1772346633240,-3900.0,0.000117,4]
[406952960,1772346633249,-500.0,0.000117,4]
[406952961,1772346633259,-500.0,0.00011758,2]
[406952962,1772346633268,-151.0,0.00011768,2]
[406952963,1772346633278,-151.0,0.00011768,2]
[406952964,1772346633287,-3161.56941758,0.0001177,2]
[406952965,1772346633296,-8745.22011516,0.00011771,2]
[406952966,1772346633309,-32695.60381055,0.00011771,2]
[406952967,1772346633320,-11972.19257429,0.00011771,2]
[406952968,1772346633330,-4134.0212,0.00011771,2]
[406952969,1772346633340,-151.0,0.00011771,2]
[406952970,1772346633349,-151.0,0.00011771,2]
[406952971,1772346633359,-151.0,0.00011771,2]
[406952972,1772346633369,-967.180378,0.00011771,2]
[406952973,1772346633379,-967.180378,0.00011771,2]
[406952974,1772346633389,-716.096086,0.00011771,2]
[406952975,1772346633398,-716.096086,0.00011771,2]
[406952976,1772346633408,-967.180378,0.00011771,2]
[406952977,1772346633417,-967.180378,0.00011771,2]
[406952978,1772346633426,-716.096086,0.00011771,2]
[406952979,1772346633435,-716.096086,0.00011771,2]
[406952980,1772346633444,-967.180378,0.00011771,2]
[406952981,1772346633453,-877.94015524,0.00011771,2]
[406952982,1772346633464,-89.24022276,0.00011771,2]
[406952983,1772346633473,-716.096086,0.00011771,2]
[406952984,1772346633483,-716.096086,0.00011771,2]
[406952985,1772346633494,-967.180378,0.00011771,2]
[406952986,1772346633504,-967.180378,0.00011771,2]
[406952987,1772346633520,-234.93228518,0.00011771,2]
[406952988,1772346633532,-481.16380082,0.00011771,2]
[406952989,1772346633541,-716.096086,0.00011771,2]
[406952990,1772346633550,-151.0,0.00011771,2]
[406952991,1772346633559,-151.0,0.00011771,2]
[406952992,1772346633568,-151.0,0.00011771,2]
[406952993,1772346633577,-151.0,0.00011771,2]
[406952994,1772346633585,-151.0,0.00011771,2]
[406952995,1772346633594,-151.0,0.00011771,2]
[406952996,1772346633603,-172.220877,0.00011771,2]
[406952997,1772346633613,-172.220877,0.00011771,2]
[406952998,1772346633623,-172.220877,0.00011771,2]
[406952999,1772346633632,-172.220877,0.00011771,2]
[406953000,1772346633641,-172.220877,0.00011771,2]
[406953001,1772346633651,-172.220877,0.00011771,2]
[406953002,1772346633660,-172.220877,0.00011771,2]
[406953003,1772346633669,-172.220877,0.00011771,2]
[406953004,1772346633678,-172.220877,0.00011771,2]
[406953005,1772346633687,-172.220877,0.00011771,2]
[406953006,1772346633696,-172.220877,0.00011771,2]
[406953007,1772346633706,-172.220877,0.00011771,2]
[406953008,1772346633715,-151.111744,0.00011771,2]
[406953009,1772346633724,-151.0,0.00011771,2]
[406953010,1772346633734,-151.0,0.00011771,2]
[406953011,1772346633743,-151.0,0.00011771,2]
[406953012,1772346633752,-151.0,0.00011771,2]
[406953013,1772346633762,-151.0,0.00011771,2]
[406953014,1772346633771,-151.0,0.00011771,2]
[406953015,1772346633780,-151.0,0.00011771,2]
[406953016,1772346633789,-151.0,0.00011771,2]
[406953017,1772346633798,-151.0,0.00011771,2]
[406953018,1772346633808,-151.0,0.00011771,2]
[406953019,1772346633817,-151.0,0.00011771,2]
[406953020,1772346633827,-151.0,0.00011771,2]
[406953021,1772346633836,-151.0,0.00011771,2]
[406953022,1772346633845,-151.0,0.00011771,2]
[406953023,1772346633854,-151.0,0.00011771,2]
[406953024,1772346633863,-5900.0,0.000118,4]
[406953025,1772346633873,-800.0,0.000118,4]
[406953026,1772346633882,-151.0,0.00011866,2]
[406953027,1772346633891,-151.0,0.00011866,2]
[406953028,1772346633901,-151.0,0.00011869,2]
[406953029,1772346633914,-151.0,0.00011869,2]
[406953030,1772346633923,-151.0,0.00011869,2]
[406953031,1772346633932,-176.64,0.0001187,2]
[406953032,1772346633941,-151.0,0.0001187,2]
[406953033,1772346633952,-151.0,0.0001187,2]
[406953034,1772346633962,-967.180378,0.0001187,2]
[406953035,1772346633971,-967.180378,0.0001187,2]
[406953036,1772346633980,-716.096086,0.0001187,2]
[406953037,1772346633991,-716.096086,0.0001187,2]
[406953038,1772346634000,-967.180378,0.0001187,2]
[406953039,1772346634009,-967.180378,0.0001187,2]
[406953040,1772346634019,-716.096086,0.0001187,2]
[406953041,1772346634029,-716.096086,0.0001187,2]
[406953042,1772346634039,-967.180378,0.0001187,2]
[406953043,1772346634048,-967.180378,0.0001187,2]
[406953044,1772346634057,-716.096086,0.0001187,2]
[406953045,1772346634067,-716.096086,0.0001187,2]
[406953046,1772346634076,-967.180378,0.0001187,2]
[406953047,1772346634085,-967.180378,0.0001187,2]
[406953048,1772346634094,-716.096086,0.0001187,2]
[406953049,1772346634103,-716.096086,0.0001187,2]
[406953050,1772346634113,-151.0,0.0001187,2]
[406953051,1772346634122,-151.0,0.0001187,2]
[406953052,1772346634131,-151.0,0.0001187,2]
[406953053,1772346634140,-151.0,0.0001187,2]
[406953054,1772346634150,-151.0,0.0001187,2]
[406953055,1772346634158,-190.6568,0.0001187,2]
[406953056,1772346634167,-172.220877,0.0001187,2]
[406953057,1772346634176,-172.220877,0.0001187,2]
[406953058,1772346634185,-172.220877,0.0001187,2]
[406953059,1772346634195,-172.220877,0.0001187,2]
[406953060,1772346634203,-172.220877,0.0001187,2]
[406953061,1772346634213,-172.220877,0.0001187,2]
[406953062,1772346634222,-172.220877,0.0001187,2]
[406953063,1772346634231,-172.220881,0.0001187,2]
[406953064,1772346634240,-151.0,0.0001187,2]
[406953065,1772346634250,-151.0,0.0001187,2]
[406953066,1772346634259,-151.0,0.0001187,2]
[406953067,1772346634272,-151.0,0.0001187,2]
[406953068,1772346634283,-151.0,0.0001187,2]
[406953069,1772346634292,-151.0,0.0001187,2]
[406953070,1772346634302,-151.0,0.0001187,2]
[406953071,1772346634311,-151.0,0.0001187,2]
[406953072,1772346634320,-151.0,0.0001187,2]
[406953073,1772346634329,-178.135364,0.0001187,2]
[406953074,1772346634339,-151.0,0.0001187,2]
[406953075,1772346634349,-287.38962,0.0001187,2]
[406953076,1772346634358,-500.0,0.0001187,2]
[406953077,1772346634368,-500.0,0.0001187,2]
[406953078,1772346634377,-500.0,0.0001187,2]
[406953079,1772346634386,-500.0,0.0001187,2]
[406953080,1772346634395,-500.0,0.0001187,2]
[406953081,1772346634405,-500.0,0.0001187,2]
[406953082,1772346634414,-500.0,0.0001187,2]
[406953083,1772346634423,-500.0,0.0001187,2]
[406953084,1772346634433,-500.0,0.0001187,2]
[406953085,1772346634442,-500.0,0.0001187,2]
[406953086,1772346634571,-500.0,0.0001187,2]
[406953087,1772346634582,-500.0,0.0001187,2]
[406953088,1772346634597,-500.0,0.0001187,2]
[406953089,1772346634607,-500.0,0.0001187,2]
[406953090,1772346634617,-500.0,0.0001187,2]
[406953091,1772346634626,-500.0,0.0001187,2]
[406953092,1772346634635,-500.0,0.0001187,2]
[406953093,1772346634645,-500.0,0.0001187,2]
[406953094,1772346634654,-500.0,0.0001187,2]
[406953095,1772346634664,-500.0,0.0001187,2]
[406953096,1772346634674,-500.0,0.0001187,2]
[406953097,1772346634684,-500.0,0.0001187,2]
[406953098,1772346634694,-500.0,0.0001187,2]
[406953099,1772346634704,-500.0,0.0001187,2]
[406953100,1772346634714,-500.0,0.0001187,2]
[406953101,1772346634724,-500.0,0.0001187,2]
[406953102,1772346634733,-500.0,0.0001187,2]
[406953103,1772346634743,-500.0,0.0001187,2]
[406953104,1772346634753,-500.0,0.0001187,2]
[406953105,1772346634762,-500.0,0.0001187,2]
[406953106,1772346634772,-500.0,0.0001187,2]
[406953107,1772346634781,-500.0,0.0001187,2]
[406953108,1772346634794,-500.0,0.0001187,2]
[406953109,1772346634803,-500.0,0.0001187,2]
[406953110,1772346634812,-500.0,0.0001187,2]
[406953111,1772346634822,-500.0,0.0001187,2]
[406953112,1772346634831,-500.0,0.0001187,2]
[406953113,1772346634841,-500.0,0.0001187,2]
[406953114,1772346634850,-500.0,0.0001187,2]
[406953115,1772346634859,-500.0,0.0001187,2]